fUSD/lending_fUSD_20240618
["ID","MTS","AMOUNT","RATE_DAILY","PERIOD"]
[329784440,1718674241606,-500.0,0.00014,2]
[329784441,1718674241615,-151.0,0.00014,2]
[329784442,1718674241626,-151.0,0.00014,2]
[329784443,1718674241636,-500.0,0.00014,2]
[329784444,1718674241647,-978.0,0.00014,2]
[329784445,1718674241658,-151.0,0.00014,2]
[329784446,1718674241667,-159.0,0.00014,2]
[329784447,1718674241678,-500.0,0.00014,2]
[329784448,1718674241688,-830.0,0.00014,2]
[329784449,1718674241698,-1865.83058,0.00014,2]
[329784450,1718674241708,-180.0,0.00014169,2]
[329784451,1718674241718,-1886.09,0.00014258,2]
[329784452,1718674241728,-358.3,0.00014607,2]
[329784453,1718674241738,-801.55,0.00014734,2]
[329784454,1718674241749,-17878.38,0.00014734,2]
[329784455,1718674241759,-1327.86,0.00014879,2]
[329784456,1718674241769,-250.0,0.00014879,2]
[329784457,1718674241780,-1101.71,0.00014879,2]
[329784458,1718674241790,-297.78,0.00014879,2]
[329784459,1718674241801,-483.08,0.00014951,2]
[329784460,1718674241812,-160.13,0.00014993,2]
[329784461,1718674241822,-621.77168446,0.00015,2]
[329784462,1718674241840,-200.0,0.00015,2]
[329784463,1718674241850,-3961.91876676,0.00015,2]
[329784464,1718674241860,-1000.0,0.00015,2]
[329784465,1718674241870,-849.78607623,0.00015266,2]
[329784466,1718674241880,-201.93,0.00015831,2]
[329784467,1718674241890,-152.77,0.00015988,2]
[329784468,1718674241899,-172.39,0.00016468,2]
[329784469,1718674241909,-1806.78931483,0.000165,2]
[329784470,1718674241920,-801.55,0.00016576,2]
[329784471,1718674241930,-849.78607623,0.00016632,2]
[329784472,1718674241940,-167.0,0.00016679,2]
[329784473,1718674241950,-1207.39,0.00016735,2]
[329784474,1718674241960,-456.34,0.00016932,2]
[329784475,1718674241970,-1886.09,0.00016998,2]
[329784476,1718674241979,-162.092,0.00017042,2]
[329784477,1718674241990,-250.0,0.00017044,2]
[329784478,1718674241999,-483.08,0.00017215,2]
[329784479,1718674242010,-167.0,0.00017229,2]
[329784480,1718674242020,-168.34,0.00017261,2]
[329784481,1718674242029,-152.73,0.00017561,2]
[329784482,1718674242040,-152.73,0.00017566,2]
[329784483,1718674242051,-152.73,0.00017572,2]
[329784484,1718674242062,-152.73,0.00017578,2]
[329784485,1718674242072,-152.73,0.00017584,2]
[329784486,1718674242093,-152.73,0.0001759,2]
[329784487,1718674242103,-152.73,0.00017596,2]
[329784488,1718674242113,-152.73,0.00017602,2]
[329784489,1718674242124,-152.73,0.00017608,2]
[329784490,1718674242134,-152.73,0.00017613,2]
[329784491,1718674242144,-152.73,0.00017619,2]
[329784492,1718674242154,-152.73,0.00017625,2]
[329784493,1718674242165,-152.73,0.00017631,2]
[329784494,1718674242175,-152.73,0.00017637,2]
[329784496,1718674242184,-152.73,0.00017643,2]
[329784498,1718674242194,-152.73,0.00017649,2]
[329784500,1718674242205,-180.0,0.00017711,2]
[329784502,1718674242215,-167.0,0.0001778,2]
[329784504,1718674242224,-1000.0,0.00017879,2]
[329784506,1718674242234,-2573.0,0.000179,2]
[329784508,1718674242243,-160.13,0.00017991,2]
[329784510,1718674242253,-849.78607623,0.00017998,2]
[329784512,1718674242263,-599.0,0.00018,2]
[329784514,1718674242272,-167.0,0.0001833,2]
[329784516,1718674242282,-158.1,0.00018365,2]
[329784518,1718674242292,-801.55,0.00018417,2]
[329784520,1718674242302,-201.93,0.00018444,2]
[329784522,1718674242311,-167.0,0.00018881,2]
[329784524,1718674242321,-156.03888376,0.00019,2]
[329784526,1718674242337,-1865.83059,0.00019,2]
[329784528,1718674242347,-158.1,0.00019177,2]
[329784530,1718674242357,-746.41,0.00019178,2]
[329784532,1718674242366,-1500.0,0.00019178,5]
[329784534,1718674242376,-849.78607623,0.00019363,2]
[329784536,1718674242385,-167.0,0.00019431,2]
[329784538,1718674242395,-483.08,0.00019479,2]
[329784540,1718674242406,-937.56930127,0.00019705,2]
[329784542,1718674242416,-1886.09,0.00019738,2]
[329784544,1718674242426,-2540.18,0.00019744,2]
[329784546,1718674242435,-1304.0,0.00019744,2]
[329784547,1718674242446,-447.0,0.00019744,2]
[329784548,1718674242459,-3197.0,0.00019744,2]
[329784549,1718674242469,-547.0,0.00019744,2]
[329784550,1718674242479,-1067.0,0.00019744,2]
[329784551,1718674242489,-1830.0,0.00019744,2]
[329784552,1718674242499,-1271.0,0.00019744,2]
[329784553,1718674242508,-5162.0,0.00019744,2]
[329784554,1718674242518,-5813.427,0.00019744,2]
[329784555,1718674242530,-1659.0,0.00019744,2]
[329784556,1718674242540,-9153.31318317,0.00019744,2]
[329784605,1718674243160,-28971.68681683,0.00019744,2]
[329784607,1718674243170,-359.128,0.00019744,2]
[329784609,1718674243179,-1196.0,0.00019744,2]
[329784611,1718674243188,-151.0,0.00019744,2]
[329784613,1718674243199,-151.0,0.00019744,2]
[329784615,1718674243208,-286.986012,0.00019744,2]
[329784617,1718674243218,-151.0,0.00019744,2]
[329784619,1718674243228,-151.0,0.00019744,2]
[329784621,1718674243238,-153.905616,0.00019744,2]
[329784623,1718674243247,-151.0,0.00019744,2]
[329784625,1718674243257,-151.0,0.00019744,2]
[329784627,1718674243267,-151.0,0.00019744,2]
[329784629,1718674243276,-152.055493,0.00019744,2]
[329784631,1718674243285,-151.0,0.00019744,2]
[329784633,1718674243294,-151.0,0.00019744,2]
[329784635,1718674243304,-151.0,0.00019744,2]
[329784637,1718674243313,-151.0,0.00019744,2]
[329784639,1718674243322,-1385.685227,0.00019744,2]
[329784641,1718674243337,-1385.685227,0.00019744,2]
[329784643,1718674243347,-158.1,0.00019989,2]
[329784645,1718674243356,-500.0,0.0002,7]
[329784647,1718674243366,-865.86350875,0.0002,2]
[329784649,1718674243375,-1782.31988206,0.0002,2]
[329784651,1718674243385,-155.0,0.0002,2]
[329784653,1718674243393,-155.0,0.0002,2]
[329784655,1718674243402,-3897.73390955,0.0002,2]
[329784657,1718674243411,-155.0,0.0002,2]
[329784659,1718674243420,-187.74893441,0.0002,2]
[329784661,1718674243432,-645.72730004,0.0002,2]
[329784663,1718674243440,-364.95081979,0.0002,2]
[329784665,1718674243450,-226.83513534,0.000201,2]
[329784667,1718674243459,-1000.0,0.00020113,2]
[329784669,1718674243468,-417.85,0.00020178,2]
[329784671,1718674243478,-852.03,0.00020178,2]
[329784673,1718674243486,-417.85,0.00020178,2]
[329784675,1718674243496,-801.55,0.00020259,2]
[329784677,1718674243506,-958.2785447,0.0002051,2]
[329784679,1718674243516,-150.0,0.0002059,2]
[329784680,1718674243526,-150.0,0.0002059,2]
[329784682,1718674243535,-11748.0,0.000206,5]
[329784685,1718674243545,-151.0,0.000206,2]
[329784687,1718674243555,-849.78607623,0.00020729,2]
[329784689,1718674243564,-158.1,0.00020802,2]
[329784691,1718674243574,-600.0,0.00020832,2]
[329784693,1718674243590,-183.7844533,0.00020999,2]
[329784695,1718674243600,-500.0,0.00020999,2]
[329784697,1718674243610,-500.0,0.00020999,2]
[329784701,1718674243621,-500.0,0.00020999,2]
[329784708,1718674243635,-500.0,0.00020999,2]
[329784714,1718674243650,-500.0,0.00020999,2]
[329784725,1718674243660,-500.0,0.00020999,2]
[329784737,1718674243673,-419.55040736,0.00020999,2]
[329784744,1718674243683,-500.0,0.00020999,2]
[329784752,1718674243692,-500.0,0.00020999,2]
[329784760,1718674243703,-500.0,0.00020999,2]
[329784765,1718674243712,-162.7622916,0.00020999,2]
[329784770,1718674243722,-500.0,0.00020999,2]
[329784776,1718674243731,-500.0,0.00020999,2]
[329784781,1718674243740,-1443.0092104,0.00021,2]
[329784787,1718674243750,-111440.64,0.00021,2]
[329784792,1718674243759,-202.114337,0.00021,2]
[329784796,1718674243768,-7185.73398108,0.00021,2]
[329784800,1718674243776,-1250.0,0.00021,2]
[329784804,1718674243785,-151.0,0.00021,2]
[329784808,1718674243792,-151.0,0.00021,2]
[329784810,1718674243800,-151.0,0.00021,2]
[329784813,1718674243807,-151.0,0.00021,2]
[329784816,1718674243815,-151.0,0.00021,2]
[329784819,1718674243824,-1385.685227,0.00021,2]
[329784822,1718674243839,-1385.685227,0.00021,2]
[329784824,1718674243847,-151.0,0.00021,2]
[329784826,1718674243855,-1000.0,0.000211,2]
[329784829,1718674243863,-151.0,0.00021193,2]
[329784832,1718674243870,-180.0,0.00021253,2]
[329784835,1718674243879,-843.0,0.00021454,2]
[329784838,1718674243887,-51300.57694106,0.00021572,2]
[329784841,1718674243895,-168.34,0.00021576,2]
[329784843,1718674243904,-238.07079474,0.00021587,2]
[329784846,1718674243912,-442.75229546,0.00021587,2]
[329784849,1718674243920,-1000.0,0.00021588,2]
[329784852,1718674243928,-199.95689223,0.00021589,2]
[329784855,1718674243935,-1048.51520528,0.00021589,2]
[329784858,1718674243943,-500.0,0.00021589,2]
[329784861,1718674243952,-787.04215256,0.00021589,2]
[329784863,1718674243959,-176626.39992208,0.00021589,2]
[329784866,1718674243967,-158.1,0.00021614,2]
[329784869,1718674243978,-174.42184083,0.00021617,2]
[329784872,1718674243988,-238.58403677,0.00021617,2]
[329784874,1718674243997,-327.72439797,0.00021619,2]
[329784876,1718674244007,-427.515366,0.00021644,2]
[329784878,1718674244016,-282.44426697,0.00021678,2]
[329784880,1718674244026,-150.0,0.00021687,2]
[329784882,1718674244035,-600.0,0.000217,2]
[329784884,1718674244044,-249925.77868932,0.00021717,2]
[329784886,1718674244054,-170.86365056,0.00021717,2]
[329784888,1718674244064,-151.0,0.00021717,2]
[329784890,1718674244074,-151.0,0.00021717,2]
[329784892,1718674244089,-182.525008,0.00021717,2]
[329784894,1718674244099,-151.0,0.00021717,2]
[329784896,1718674244108,-151.0,0.00021717,2]
[329784898,1718674244118,-151.0,0.00021717,2]
[329784900,1718674244128,-152.482907,0.00021717,2]
[329784902,1718674244137,-151.0,0.00021717,2]
[329784904,1718674244146,-151.0,0.00021717,2]
[329784906,1718674244155,-151.0,0.00021717,2]
[329784908,1718674244164,-151.0,0.00021717,2]
[329784910,1718674244174,-151.0,0.00021717,2]
[329784912,1718674244183,-151.0,0.00021717,2]
[329784914,1718674244193,-151.0,0.00021717,2]
[329784915,1718674244203,-154.5335,0.00021717,2]
[329784917,1718674244213,-151.0,0.00021717,2]
[329784918,1718674244223,-151.0,0.00021717,2]
[329784919,1718674244232,-151.0,0.00021717,2]
[329784920,1718674244242,-151.0,0.00021717,2]
[329784921,1718674244251,-151.0,0.00021717,2]
[329784922,1718674244260,-151.0,0.00021717,2]
[329784923,1718674244270,-336.339931,0.00021717,2]
[329784924,1718674244279,-206.913544,0.00021717,2]
[329784925,1718674244288,-336.339931,0.00021717,2]
[329784926,1718674244533,-151.0,0.00021717,2]
[329784927,1718674244543,-151.0,0.00021717,2]
[329784928,1718674244553,-151.0,0.00021717,2]
[329784929,1718674244562,-238.033194,0.00021717,2]
[329784930,1718674244572,-153.164249,0.00021717,2]
[329784931,1718674244587,-1385.685227,0.00021717,2]
[329784932,1718674244597,-1385.685227,0.00021717,2]
[329784933,1718674244607,-154.606706,0.00021717,2]
[329784934,1718674244617,-151.59284,0.00021719,2]
[329784935,1718674244626,-151.0,0.00021719,2]
[329784936,1718674244635,-150.0,0.00021721,2]
[329784937,1718674244645,-150.0,0.00021729,2]
[329784938,1718674244654,-150.0,0.0002173,2]
[329784939,1718674244663,-150.0,0.00021736,2]
[329784940,1718674244673,-150.0,0.00021738,2]
[329784941,1718674244683,-200.0,0.00021741,2]
[329784942,1718674244694,-500.0,0.00021741,2]
[329784943,1718674244704,-200.0,0.00021741,2]
[329784944,1718674244713,-200.0,0.00021742,2]
[329784945,1718674244723,-200.0,0.00021742,2]
[329784946,1718674244732,-1000.0,0.00021742,2]
[329784947,1718674244741,-500.0,0.00021742,2]
[329784948,1718674244751,-200.0,0.00021742,2]
[329784949,1718674244761,-483.08,0.00021743,2]
[329784950,1718674244770,-150.0,0.00021743,2]
[329784951,1718674244780,-150.0,0.00021744,2]
[329784952,1718674244790,-150.0,0.00021746,2]
[329784953,1718674244800,-150.0,0.00021772,2]
[329784954,1718674244809,-150.0,0.00021776,2]
[329784955,1718674244819,-150.0,0.0002178,2]
[329784956,1718674244835,-150.0,0.0002178,2]
[329784957,1718674244843,-150.0,0.00021788,2]
[329784958,1718674244852,-150.0,0.00021792,2]
[329784959,1718674244861,-150.0,0.00021793,2]
[329784960,1718674244870,-300.0,0.00021793,2]
[329784961,1718674244879,-1000.0,0.00021793,2]
[329784962,1718674244888,-165.6043766,0.00021794,2]
[329784963,1718674244898,-150.0,0.00021799,2]
[329784964,1718674244907,-3163.01523537,0.000218,2]
[329784965,1718674244917,-1118.7958199,0.000218,2]
[329784966,1718674244926,-215.0,0.000218,2]
[329784967,1718674244935,-150.0,0.00021805,2]
[329784968,1718674244944,-150.0,0.00021806,2]
[329784969,1718674244954,-150.0,0.00021815,2]
[329784970,1718674244963,-10000.0,0.00021817,2]
[329784971,1718674244972,-281.1446,0.00021817,2]
[329784972,1718674244982,-199.59095128,0.00021817,2]
[329784973,1718674244991,-159.74386372,0.00021817,4]
[329784974,1718674245000,-2268.62348208,0.00021817,2]
[329784975,1718674245010,-150.0,0.00021837,2]
[329784976,1718674245019,-150.0,0.0002184,2]
[329784977,1718674245028,-150.0,0.00021847,2]
[329784978,1718674245037,-150.0,0.00021857,2]
[329784979,1718674245046,-150.0,0.00021866,2]
[329784980,1718674245055,-150.0,0.00021867,2]
[329784981,1718674245064,-150.0,0.0002187,2]
[329784982,1718674245073,-150.0,0.00021871,2]
[329784983,1718674245085,-150.0,0.00021874,2]
[329784984,1718674245094,-150.0,0.00021883,2]
[329784985,1718674245103,-150.0,0.0002189,2]
[329784986,1718674245112,-150.0,0.00021894,2]
[329784987,1718674245122,-1500.0,0.00021895,2]
[329784992,1718674245132,-2351601.3757629,0.00021897,2]
[329784996,1718674245141,-489.0,0.000219,4]
[329784999,1718674245151,-291.0,0.000219,2]
[329785003,1718674245160,-460.69291176,0.000219,2]
[329785006,1718674245170,-839670.4389649,0.000219,2]
[329785010,1718674245179,-190.0,0.000219,4]
[329785011,1718674245189,-151.0,0.000219,2]
[329785013,1718674245198,-151.0,0.000219,2]
[329785015,1718674245208,-151.0,0.000219,2]
[329785016,1718674245218,-151.0,0.000219,2]
[329785017,1718674245228,-200.132747,0.000219,2]
[329785018,1718674245237,-151.0,0.000219,2]
[329785019,1718674245247,-151.0,0.000219,2]
[329785020,1718674245258,-151.0,0.000219,2]
[329785021,1718674245268,-151.0,0.000219,2]
[329785022,1718674245278,-151.587161,0.000219,2]
[329785023,1718674245288,-151.0,0.000219,2]
[329785024,1718674245299,-151.0,0.000219,2]
[329785025,1718674245310,-151.0,0.000219,2]
[329785026,1718674245320,-750.0,0.000219,2]
[329785027,1718674245340,-336.339931,0.000219,2]
[329785028,1718674245351,-336.339931,0.000219,2]
[329785029,1718674245361,-2854.79953758,0.000219,2]
[329785030,1718674245370,-150.0,0.000219,3]
[329785031,1718674245380,-1385.685227,0.000219,2]
[329785032,1718674245389,-1385.685227,0.000219,2]
[329785033,1718674245400,-150.0,0.000219,3]
[329785034,1718674245409,-334.0,0.000219,2]
[329785035,1718674245419,-857.59233358,0.000219,2]
[329785036,1718674245430,-3028.8815947,0.00021906,2]
[329785037,1718674245439,-6838.8180122,0.00021906,2]
[329785038,1718674245453,-4323.0155897,0.00021906,2]
[329785039,1718674245463,-3128.6036644,0.00021906,2]
[329785040,1718674245472,-2205.6667757,0.00021906,2]
[329785041,1718674245482,-633.1952686,0.00021906,2]
[329785042,1718674245493,-150.0,0.00021909,2]
[329785043,1718674245502,-151.0,0.00021911,2]
[329785044,1718674245511,-151.0,0.00021911,2]
[329785045,1718674245522,-151.0,0.00021911,2]
[329785046,1718674245532,-151.0,0.00021911,2]
[329785047,1718674245542,-336.339931,0.00021911,2]
[329785048,1718674245551,-336.339931,0.00021911,2]
[329785049,1718674245560,-150.0,0.00021911,2]
[329785050,1718674245570,-150.0,0.00021913,2]
[329785051,1718674245586,-85684.0,0.00021916,2]
[329785052,1718674245596,-150.0,0.00021916,2]
[329785053,1718674245606,-1385.685227,0.00021916,2]
[329785054,1718674245616,-1385.685227,0.00021916,2]
[329785055,1718674245626,-150.0,0.00021916,2]
[329785056,1718674245635,-886.81672925,0.00021916,2]
[329785057,1718674245645,-34513.45,0.00021917,2]
[329785058,1718674245654,-500.0,0.00021917,2]
[329785059,1718674245664,-500.0,0.00021917,2]
[329785060,1718674245674,-273.30285909,0.00021917,2]
[329785061,1718674245683,-500.0,0.00021917,2]
[329785062,1718674245693,-449.01915721,0.00021917,2]
[329785063,1718674245703,-500.0,0.00021917,2]
[329785064,1718674245712,-501.5904941,0.00021917,2]
[329785065,1718674245722,-200.0,0.00021917,2]
[329785066,1718674245732,-502.7747004,0.00021917,2]
[329785067,1718674245741,-608.76751174,0.00021917,2]
[329785068,1718674245751,-500.0,0.00021917,2]
[329785069,1718674245760,-500.0,0.00021917,2]
[329785070,1718674245770,-500.0,0.00021917,2]
[329785071,1718674245779,-500.0,0.00021917,2]
[329785072,1718674245789,-235.35916592,0.00021917,2]
[329785073,1718674245798,-511.22759852,0.00021917,2]
[329785074,1718674245808,-487.66638286,0.00021917,2]
[329785075,1718674245817,-500.0,0.00021917,2]
[329785076,1718674245832,-500.0,0.00021917,2]
[329785077,1718674245842,-500.0,0.00021917,2]
[329785078,1718674245852,-500.0,0.00021917,2]
[329785079,1718674245861,-500.0,0.00021917,2]
[329785080,1718674245871,-509.57511885,0.00021917,2]
[329785081,1718674245880,-508.77875177,0.00021917,2]
[329785082,1718674245890,-500.0,0.00021917,2]
[329785083,1718674245900,-588.00747766,0.00021917,2]
[329785087,1718674245910,-500.0,0.00021917,2]
[329785091,1718674245920,-500.0,0.00021917,2]
[329785095,1718674245930,-157.52075676,0.00021917,2]
[329785100,1718674245940,-500.0,0.00021917,2]
[329785104,1718674245950,-500.0,0.00021917,2]
[329785108,1718674245960,-500.0,0.00021917,2]
[329785112,1718674245970,-500.0,0.00021917,2]
[329785115,1718674245979,-500.0,0.00021917,2]
[329785117,1718674245988,-500.0,0.00021917,2]
[329785121,1718674245999,-500.0,0.00021917,2]
[329785124,1718674246008,-500.0,0.00021917,2]
[329785127,1718674246017,-500.0,0.00021917,2]
[329785130,1718674246026,-500.0,0.00021917,2]
[329785133,1718674246036,-500.0,0.00021917,2]
[329785135,1718674246045,-521.72487253,0.00021917,2]
[329785138,1718674246055,-528.32690611,0.00021917,2]
[329785141,1718674246065,-500.0,0.00021917,2]
[329785144,1718674246074,-500.0,0.00021917,2]
[329785147,1718674246089,-500.0,0.00021917,2]
[329785150,1718674246098,-500.0,0.00021917,2]
[329785153,1718674246108,-508.18930495,0.00021917,2]
[329785155,1718674246117,-500.0,0.00021917,2]
[329785158,1718674246126,-500.0,0.00021917,2]
[329785161,1718674246135,-500.0,0.00021917,2]
[329785164,1718674246145,-544.70595251,0.00021917,2]
[329785167,1718674246154,-500.0,0.00021917,2]
[329785170,1718674246163,-500.0,0.00021917,2]
[329785173,1718674246172,-500.0,0.00021917,2]
[329785176,1718674246182,-244.7506752,0.00021917,2]
[329785178,1718674246192,-500.0,0.00021917,2]
[329785180,1718674246201,-500.0,0.00021917,2]
[329785182,1718674246212,-500.0,0.00021917,2]
[329785184,1718674246221,-528.62032314,0.00021917,2]
[329785186,1718674246230,-500.0,0.00021917,2]
[329785188,1718674246240,-500.0,0.00021917,2]
[329785190,1718674246250,-500.0,0.00021917,2]
[329785192,1718674246259,-500.0,0.00021917,2]
[329785194,1718674246269,-500.0,0.00021917,2]
[329785196,1718674246279,-500.0,0.00021917,2]
[329785198,1718674246288,-500.0,0.00021917,2]
[329785200,1718674246298,-500.0,0.00021917,2]
[329785202,1718674246308,-500.0,0.00021917,2]
[329785204,1718674246318,-456.96017832,0.00021917,2]
[329785206,1718674246331,-500.0,0.00021917,2]
[329785207,1718674246340,-500.0,0.00021917,2]
[329785208,1718674246351,-500.0,0.00021917,2]
[329785209,1718674246360,-308.26709481,0.00021917,2]
[329785210,1718674246370,-500.0,0.00021917,2]
[329785211,1718674246379,-500.0,0.00021917,2]
[329785212,1718674246388,-500.0,0.00021917,2]
[329785213,1718674246397,-500.0,0.00021917,2]
[329785214,1718674246406,-500.0,0.00021917,2]
[329785215,1718674246417,-519.04375438,0.00021917,2]
[329785216,1718674246427,-644.52892627,0.00021917,2]
[329785217,1718674246443,-246.53015649,0.00021917,2]
[329785218,1718674246452,-500.0,0.00021917,2]
[329785219,1718674246461,-500.0,0.00021917,2]
[329785220,1718674246471,-500.0,0.00021917,2]
[329785221,1718674246481,-500.0,0.00021917,2]
[329785222,1718674246491,-500.0,0.00021917,2]
[329785223,1718674246501,-500.0,0.00021917,2]
[329785224,1718674246512,-500.0,0.00021917,2]
[329785225,1718674246522,-500.0,0.00021917,2]
[329785226,1718674246531,-501.27976214,0.00021917,2]
[329785227,1718674246540,-500.0,0.00021917,2]
[329785228,1718674246550,-169.16556642,0.00021917,2]
[329785229,1718674246560,-500.0,0.00021917,2]
[329785230,1718674246570,-500.0,0.00021917,2]
[329785231,1718674246584,-500.0,0.00021917,2]
[329785232,1718674246594,-500.0,0.00021917,2]
[329785233,1718674246603,-500.0,0.00021917,2]
[329785234,1718674246614,-500.0,0.00021917,2]
[329785235,1718674246624,-500.0,0.00021917,2]
[329785236,1718674246634,-500.0,0.00021917,2]
[329785239,1718674246644,-704.53,0.00021917,2]
[329785242,1718674246654,-529.58404505,0.00021917,2]
[329785244,1718674246663,-500.0,0.00021917,2]
[329785247,1718674246673,-500.0,0.00021917,2]
[329785250,1718674246683,-500.0,0.00021917,2]
[329785251,1718674246692,-500.0,0.00021917,2]
[329785253,1718674246702,-500.0,0.00021917,2]
[329785255,1718674246712,-500.0,0.00021917,2]
[329785257,1718674246722,-500.0,0.00021917,2]
[329785260,1718674246732,-500.0,0.00021917,2]
[329785262,1718674246741,-500.0,0.00021917,2]
[329785264,1718674246751,-500.0,0.00021917,2]
[329785266,1718674246761,-500.0,0.00021917,2]
[329785267,1718674246770,-500.0,0.00021917,2]
[329785268,1718674246779,-500.0,0.00021917,2]
[329785269,1718674246789,-500.0,0.00021917,2]
[329785270,1718674246799,-522.48,0.00021917,2]
[329785271,1718674246808,-500.0,0.00021917,2]
[329785272,1718674246818,-179.070713,0.00021917,2]
[329785273,1718674246830,-500.0,0.00021917,2]
[329785274,1718674246839,-500.0,0.00021917,2]
[329785275,1718674246848,-500.0,0.00021917,2]
[329785276,1718674246857,-500.0,0.00021917,2]
[329785277,1718674246866,-534.56798224,0.00021917,2]
[329785278,1718674246875,-500.0,0.00021917,2]
[329785279,1718674246884,-500.0,0.00021917,2]
[329785280,1718674246893,-500.0,0.00021917,2]
[329785281,1718674246904,-500.0,0.00021917,2]
[329785282,1718674246914,-597.26961701,0.00021917,2]
[329785283,1718674246924,-500.0,0.00021917,2]
[329785284,1718674246934,-500.0,0.00021917,2]
[329785285,1718674246944,-614.25499123,0.00021917,2]
[329785286,1718674246954,-500.0,0.00021917,2]
[329785287,1718674246964,-500.0,0.00021917,2]
[329785288,1718674246973,-500.0,0.00021917,2]
[329785289,1718674246983,-500.0,0.00021917,2]
[329785290,1718674246993,-307.17492458,0.00021917,2]
[329785291,1718674247003,-500.0,0.00021917,2]
[329785292,1718674247014,-500.0,0.00021917,2]
[329785293,1718674247023,-500.0,0.00021917,2]
[329785294,1718674247033,-500.0,0.00021917,2]
[329785295,1718674247042,-500.0,0.00021917,2]
[329785296,1718674247052,-500.0,0.00021917,2]
[329785297,1718674247061,-500.0,0.00021917,2]
[329785298,1718674247070,-184.42966935,0.00021917,2]
[329785299,1718674247086,-500.0,0.00021917,2]
[329785300,1718674247096,-500.0,0.00021917,2]
[329785301,1718674247106,-500.0,0.00021917,2]
[329785302,1718674247116,-500.0,0.00021917,2]
[329785303,1718674247126,-500.0,0.00021917,2]
[329785304,1718674247135,-500.0,0.00021917,2]
[329785305,1718674247144,-500.0,0.00021917,2]
[329785306,1718674247154,-500.0,0.00021917,2]
[329785307,1718674247163,-184.50202137,0.00021917,2]
[329785308,1718674247173,-500.0,0.00021917,2]
[329785309,1718674247182,-500.0,0.00021917,2]
[329785310,1718674247192,-500.0,0.00021917,2]
[329785311,1718674247202,-500.0,0.00021917,2]
[329785312,1718674247211,-500.0,0.00021917,2]
[329785313,1718674247221,-500.0,0.00021917,2]
[329785314,1718674247231,-500.0,0.00021917,2]
[329785315,1718674247240,-534.73008122,0.00021917,2]
[329785316,1718674247249,-500.0,0.00021917,2]
[329785317,1718674247259,-500.0,0.00021917,2]
[329785318,1718674247269,-500.0,0.00021917,2]
[329785319,1718674247278,-500.0,0.00021917,2]
[329785320,1718674247288,-500.0,0.00021917,2]
[329785321,1718674247297,-500.0,0.00021917,2]
[329785322,1718674247307,-500.0,0.00021917,2]
[329785323,1718674247316,-500.0,0.00021917,2]
[329785324,1718674247330,-500.0,0.00021917,2]
[329785325,1718674247342,-500.0,0.00021917,2]
[329785326,1718674247352,-500.0,0.00021917,2]
[329785327,1718674247362,-500.0,0.00021917,2]
[329785328,1718674247371,-500.0,0.00021917,2]
[329785329,1718674247381,-500.0,0.00021917,2]
[329785330,1718674247391,-500.0,0.00021917,2]